Cogmind - Beta 17 @@@ ROGUE MODE // 2026.08.16 @ 19:38:12 Player: P9H Result: Destroyed by Y-45 Defender with Heavy Assault Rifle Performance ------------- Evolutions (0) 0 Regions Visited (2) 400 Robots Destroyed (8) 40 Value Destroyed (279) 279 Prototype IDs (15) 300 Alien Tech Used (0) 0 Bonus (0) 0 TOTAL SCORE: 1019 Bonus ------- None Cogmind --------- Core Integrity 0/250 Matter 300/300 Energy 125/125 System Corruption 0% Temperature Cool (0) Movement Rolling (135) Ox3 Location -10/Subcaves Parts ------- > --- POWER (1) -------- Light Ion Engine (fused) > --- PROPULSION (2) --- Improved Treads (fused) Armored Wheel (fused) > --- UTILITY (2) ------ High-capacity Storage Unit Self-contained Transmogrifier > --- WEAPON (2) ------- Katana (fused) Ripper (fused) > --- INVENTORY (20) --- Subdweller Power Source Light Nuclear Core Tower Shield Barrage Gun SUBCON Basin (Full) Peak State ------------ > --- POWER ------------ Improved Ion Engine > --- PROPULSION ------- Armored Wheel Armored Wheel > --- UTILITY ---------- High-capacity Storage Unit Self-contained Transmogrifier > --- WEAPON ----------- Katana Ripper > --- INVENTORY -------- Subdweller Power Source Light Nuclear Core Tower Shield Salvaging Laser SUBCON Basin [Rating: 43] Favorites ----------- Power Light Ion Engine Engine Light Ion Engine Propulsion Wheel Treads Improved Treads Wheel Wheel Utility High-capacity Storage Unit Device Self-contained Transmogrifier Storage High-capacity Storage Unit Weapon Katana Energy Cannon Subdweller Beam Cannon Ballistic Gun Light Assault Rifle Launcher Subdweller Shrapnel Launcher Slashing Weapon Katana Build | -11 -10 -10 ------- Run | Yrd Mat Sub Slots Evolved . | . . . Power . | . . . Propulsion . | . . . Utility . | . . . Weapon . | . . . Parts Attached 12 | 5 2 5 Power 2 | 1 . 1 Engine 2 | 1 . 1 Core . | . . . Reactor . | . . . Propulsion 2 | 2 . . Treads . | . . . Leg . | . . . Wheel 2 | 2 . . Hover . | . . . Flight . | . . . Utility 4 | 1 1 2 Device 2 | . . 2 Storage 2 | 1 1 . Processor . | . . . Hackware . | . . . Protection . | . . . Artifact . | . . . Weapon 4 | 1 1 2 Energy Gun . | . . . Energy Cannon 1 | . . 1 Ballistic Gun 2 | 1 1 . Ballistic Cannon . | . . . Launcher 1 | . . 1 Special Weapon . | . . . Impact Weapon . | . . . Slashing Weapon . | . . . Piercing Weapon . | . . . Special Melee Weapon . | . . . Unidentified Prototypes 1 | . . 1 Parts Lost . | . . . Power . | . . . Propulsion . | . . . Utility . | . . . Weapon . | . . . Highest Loss Streak . | . . . To Critical Strikes . | . . . Average Backups 6 | 1 3 6 Power 2 | . 1 3 Propulsion . | . . . Utility 1 | . . 1 Weapon 2 | 1 1 2 Tool/Special . | . . . Unused Backups 11 | . . 11 Power 5 | . . 5 Propulsion . | . . . Utility 2 | . . 2 Weapon 4 | . . 4 Tool/Special . | . . . Average Slot Usage (%) 98 | . 91 99 Engine 14 | . 14 14 Treads 1 | . . 1 Wheel 26 | . 28 26 Device 6 | . . 7 Storage 20 | . 26 19 Energy Cannon 5 | . . 6 Ballistic Gun 4 | . 21 2 Launcher 5 | . . 6 Slashing Weapon 11 | . . 12 Peak Build Rating 43 | 5 7 43 Average Rating 23 | 4 6 26 On Entrance 4 | . 5 7 Avg Prop Armor Cover (%) 17 | . . 17 Naked Turns . | . . . Heaviest Build 64 | 9 51 64 Greatest Support 24 | 20 20 24 Greatest Overweight (x) 4 | . 2 4 Average Overweight (x) 2 | . 1 2 Largest Inventory Capacity 20 | 8 20 20 Average Capacity 19 | 6 19 20 Most Carried 20 | 3 5 20 Average Carried 14 | 1 4 16 Final Capacity 20 | 8 20 20 Final Carried 20 | 3 5 20 Transmogrified Parts 8 | . . 8 Integrity Recovered 104 | . . 104 Class Distribution -------------------- 100% | Mutant Dominant Class ---------------- Mutant | -10/Materials Mutant | -10/Subcaves Resources | -11 -10 -10 ----------- Run | Yrd Mat Sub Matter Collected 362 | 188 116 58 Remotely . | . . . Salvage Created 287 | . 70 217 Parts 23 | . 6 17 Haulers Intercepted . | . . . Recyclers Shooed . | . . . Parts Field Recycled . | . . . Retrieved Matter . | . . . Parts Self-Destructed 2 | . . 2 Prevented . | . . . Parts Restored . | . . . Kills | -11 -10 -10 ------- Run | Yrd Mat Sub Combat Hostiles Destroyed 8 | . 2 6 Melee 5 | . . 5 Guns 3 | . 2 1 Classes Destroyed 3 | . 1 2 Swarmer 1 | . . 1 Grunt 4 | . 2 2 Subdweller 3 | . . 3 Best Kill Streak 2 | . 2 2 Combat Bots Only 2 | . 2 2 Max Kills in Single Turn 1 | . 1 1 Gunslinging . | . . . Exploded . | . . . Melee 1 | . . 1 Uniques/NPCs Destroyed . | . . . Combat | -11 -10 -10 -------- Run | Yrd Mat Sub Hostile Shots Fired 49 | . 11 38 Missed 9 | . 2 7 Hits 40 | . 9 31 Projectile 40 | . 9 31 Damage Taken 569 | . 101 468 Core 261 | . 34 227 Absorbed by Shields . | . . . Core Remaining (%) 100 | 100 . . Volleys Fired 15 | . 10 5 Largest 2 | . 2 2 Hottest 80 | . 40 80 Shots Fired 25 | . 18 7 Gun 22 | . 18 4 Cannon 3 | . . 3 Launcher . | . . . Special . | . . . Kinetic 22 | . 18 4 Thermal 3 | . . 3 Explosive . | . . . Electromagnetic . | . . . Robot Hit Streak 5 | . 5 3 Robot Miss Streak 2 | . 2 1 Penetration Max . | . . . Secondary Targets . | . . . Shots Hit Robots 29 | . 11 18 Core Hits 14 | . 6 8 Critical Kills 1 | . 1 . Critical Parts Destroyed . | . . . Critical Strikes 2 | . 1 1 Destroy 1 | . 1 . Sever 1 | . . 1 Melee Attacks 25 | . . 25 Impact . | . . . Slashing 25 | . . 25 Piercing . | . . . Sneak Attacks . | . . . Combat Hostiles . | . . . Follow-up Attacks 1 | . . 1 Damage Inflicted 632 | . 130 502 Guns 160 | . 130 30 Cannons . | . . . Explosions . | . . . Melee 472 | . . 472 Ramming . | . . . Kinetic 160 | . 130 30 Thermal . | . . . Explosive . | . . . Electromagnetic . | . . . Impact . | . . . Slashing 472 | . . 472 Piercing . | . . . Highest Corruption . | . . . Average Corruption . | . . . Corruption Purged . | . . . Corruption Blocked . | . . . Overload Shots . | . . . Overflow Damage . | . . . Projectiles . | . . . Explosions . | . . . Melee . | . . . Knockbacks . | . . . Impact . | . . . Kinetic . | . . . Secondary . | . . . Self-Inflicted Damage . | . . . Shots . | . . . Rammed . | . . . Targets Rammed . | . . . Kicked . | . . . Crushed . | . . . Highest Temperature 12 | . 12 . Average Temperature 7 | . 7 . Received Heat Transfer 198 | . 54 144 Siege Activations . | . . . Martial Activations . | . . . Shielding Activations . | . . . Robots Disrupted . | . . . Combat Hostiles . | . . . Robots Corrupted . | . . . Combat Hostiles . | . . . Parts Fried . | . . . Impact Corruptions . | . . . Robots Melted . | . . . Combat Hostiles . | . . . Parts Melted 1 | . . 1 Heat Transferred . | . . . Parts Sabotaged . | . . . Parts Stolen . | . . . Parts Stripped . | . . . Power Chain Reactions . | . . . Alert | -11 -10 -10 ------- Run | Yrd Mat Sub Maximum Alert Level . | . . . Low Security (%) 100 | 100 100 . Level 1 . | . . . Level 2 . | . . . Level 3 . | . . . Level 4 . | . . . Level 5 . | . . . High Security . | . . . Max Security . | . . . Peak Influence 40 | . 40 . Initial . | . . . Average 9 | . 12 . Influence Increases 150 | . 80 70 Destroy 0b10 Robot/C 100 | . 40 60 Destroy Leader 20 | . 10 10 Lose Combat Pursuer 30 | . 30 . Influence Decreases 130 | . 60 70 Entered New Map 10 | . . 10 Time Decay 120 | . 60 60 Squads Dispatched 1 | . 1 . Investigation . | . . . Extermination . | . . . Reinforcement 1 | . 1 . Assault . | . . . Garrison . | . . . Intercept . | . . . Searches Triggered . | . . . Construction Impeded . | . . . Haulers Reinforced . | . . . Active Scanning Responses . | . . . Cargo Convoy Interrupts . | . . . Stealth | -11 -10 -10 --------- Run | Yrd Mat Sub Distress Signals . | . . . Communications Jammed . | . . . Distress Signals . | . . . Times Spotted 14 | . 7 7 Peak Tracking Total 2 | . 2 2 Tactical Retreats 1 | . 1 . Traps | -11 -10 -10 ------- Run | Yrd Mat Sub Traps Triggered 1 | . . 1 Indirectly . | . . . Trap Hack Attempts . | . . . Triggered . | . . . Disarmed . | . . . Reprogrammed . | . . . Reused . | . . . Traps Extracted . | . . . Installed . | . . . Triggered . | . . . Machines | -11 -10 -10 ---------- Run | Yrd Mat Sub Machines Disabled 1 | . . 1 Max in Single Turn 1 | . . 1 Machines Repaired . | . . . Machines Dismantled . | . . . Machines Sabotaged . | . . . Overloaded Fab Kills . | . . . Hacking | -11 -10 -10 --------- Run | Yrd Mat Sub Machines Accessed 3 | . . 3 Terminals . | . . . Fabricators . | . . . Repair Stations . | . . . Recycling Units . | . . . Scanalyzers . | . . . Garrison Access . | . . . Total Hacks 3 | . . 3 Successful 3 | . . 3 Failed . | . . . Catastrophic . | . . . Database Lockouts . | . . . Manual . | . . . Terminals . | . . . Fabricators . | . . . Repair Stations . | . . . Recycling Units . | . . . Scanalyzers . | . . . Garrison Access . | . . . Terminal Hacks 3 | . . 3 Open Door 1 | . . 1 Proto ID Catalog 1 | . . 1 Release Object 1 | . . 1 Fabricator Hacks . | . . . Repair Station Hacks . | . . . Recycling Unit Hacks . | . . . Scanalyzer . | . . . Garrison Access Hacks . | . . . Unauthorized Hacks . | . . . Terminals . | . . . Fabricators . | . . . Repair Stations . | . . . Recycling Units . | . . . Scanalyzers . | . . . Garrison Access . | . . . Data Cores Recovered . | . . . Used . | . . . Hacking Detections . | . . . Full Trace Events . | . . . Feedback Events . | . . . Feedback Blocked . | . . . Robot Schematics Acquired . | . . . Robots Built . | . . . Authchips . | . . . Time . | . . . Total Robot Build Rating . | . . . Part Schematics Acquired . | . . . Parts Built . | . . . Authchips . | . . . Time . | . . . Total Part Build Rating . | . . . Part Studies Acquired . | . . . Parts Repaired . | . . . Time . | . . . Parts Recycled . | . . . Recycled Matter . | . . . Retrieved Matter . | . . . Retrieved Components . | . . . Parts Scanalyzed . | . . . Part Schematics Acquired . | . . . Parts Damaged . | . . . Bothacking | -11 -10 -10 ------------ Run | Yrd Mat Sub Used RIF Installer . | . . . Robots Hacked . | . . . Non-combat . | . . . Combat . | . . . Robot Hacks Applied . | . . . Relay Couplers Released . | . . . Fabnet Peak Effective % . | . . . Robots Rewired . | . . . Allies Hacked . | . . . Hacks Repelled . | . . . Allies | -11 -10 -10 -------- Run | Yrd Mat Sub Total Allies . | . . . Largest Group . | . . . Highest-Rated Group . | . . . Highest-Rated Ally . | . . . Total Orders . | . . . Ally Attacks . | . . . Total Damage . | . . . Kills . | . . . Allies Corrupted . | . . . Allies Melted . | . . . Intel | -11 -10 -10 ------- Run | Yrd Mat Sub Active Infowar (turns) . | . . . Robot Analysis Total . | . . . Derelict Logs Recovered 1 | . . 1 Drone Launches . | . . . Drone Recoveries . | . . . Exploration | -11 -10 -10 ------------- Run | Yrd Mat Sub Turns Passed 1496 | 52 199 1245 Spaces Moved 1118 | 53 138 927 Core 3 | 3 . . Treads . | . . . Legs . | . . . Wheels 1115 | 50 138 927 Hover . | . . . Flight . | . . . Fastest Speed 50 | 50 80 110 Average Speed 115 | 78 106 119 Slowest Speed 150 | 80 110 150 Overloaded Moves . | . . . Propulsion Burnouts . | . . . Robots Hopped . | . . . Potential Cave-ins . | . . . Cave-ins Triggered . | . . . Exploration Rate (%) 23 | 3 16 50 Regions Visited 2 Branch Regions 1 Pre-discovered Areas 1 | . . 1 Known Exits Taken . | . . . Unknown Exits Taken 2 | 1 1 . Scrap Searched 2 | . . 2 Spaces Dug . | . . . Terrain Destroyed . | . . . Melee . | . . . Projectile . | . . . AOE . | . . . Terrain Rammed . | . . . Walls Destroyed . | . . . Machines Disabled . | . . . Actions | -11 -10 -10 --------- Run | Yrd Mat Sub Total 1257 | 60 173 1024 Wait 57 | . 21 36 Move 1116 | 52 137 927 Hop . | . . . Pick Up 19 | 3 3 13 Fast Attach 6 | 5 1 . Attach 2 | . 1 1 Detach 1 | . . 1 Swap 4 | . . 4 Drop 13 | . . 13 Fire 15 | . 10 5 Melee 24 | . . 24 Ram . | . . . Kick . | . . . Crush . | . . . Escape Stasis . | . . . Rewire . | . . . Trap . | . . . Miscellaneous . | . . . Route ------- -11/Scrapyard -10/Materials -10/Subcaves (discovered 1 exit: Mat) History --------- Turn | Location | Event 16 | -11/Scrapyard | Discovered new exit (range 15) 53 | -11/Scrapyard | Entered Materials 54 | -10/Materials | Met a group of wandering Federalists 245 | -10/Materials | Discovered new exit (range 8) 252 | -10/Materials | Entered Subcaves 253 | -10/Subcaves | Continued accompanying wandering Federalists (5) 303 | -10/Subcaves | Build established: Mutant 329 | -10/Subcaves | Lost 5 allies 406 | -10/Subcaves | Learned location of Zion (-6) 406 | -10/Subcaves | Met a Zionite searching for "candidates" 734 | -10/Subcaves | Visited 4L-MR0's lab 740 | -10/Subcaves | Found Prototype Device 746 | -10/Subcaves | Found Tower Shield 834 | -10/Subcaves | Identified Sfc. Transmogrifier 842 | -10/Subcaves | Found SUBCON Basin 1206 | -10/Subcaves | Core integrity fell below 50% 1271 | -10/Subcaves | Identified exit to Materials 1305 | -10/Subcaves | Core integrity fell below 20% 1343 | -10/Subcaves | Shifting Twisted Machinery released Barrage Gun 1497 | -10/Subcaves | Destroyed by Y-45 Defender with Heavy Assault Rifle Last Messages --------------- 01323_ Acquired Ion Engine. 01324_ Aluminum Leg fries itself beyond repair. 01327_ Acquired 10 matter. 01328_ Sml. Laser fries itself beyond repair. Barrage Gun falls loose from the Twisted Machinery. 01351_ Dropped Salvaging Laser. 01351_ Acquired Barrage Gun. 01378_ Sfc. Transmogrifier converts Arm. Wheel into Imp. Treads. 01392_ Sfc. Transmogrifier converts Ion Engine into Lgt. Ion Engine. 01396_ Searching scrap... 01396_ Found Sub. Shrapnel Launcher. 01396_ Found 61 Matter. 01433_ Searching scrap... 01433_ Found Sub. Laser. 01433_ Found Barrage Gun. 01433_ Found 42 Matter. 01495_ S-10 Pest destroyed. Map ----- +----------------------------------------------------+ | ???????????# % ##### # #???????????????????????? | | ???????????## ### ##%## ##???????????????????????? | | ???????????# ##?## ] ###%###?????????????????????? | | ???????????# ????#### ## "##????????????????????? | | ???????????# ???????### ## ###??????????????????? | | ??????????? #?????????###### #??????????????????? | | ???????????#???????????????## #??????????????????? | | ????????????????????????????# #??????????????????? | | ????????????????????????????# ##?????????????????? | | ????????????????????????????#[%#?????????????????? | | ???????????????????????????##[##?????????????????? | | ??????????????????????????## #?????????????????? | | ??????????????????????????# ####?????????????????? | | ??????????????????????????##%###?????????????????? | | ???????????????????????????## #?????????????????? | | ????????????????????????????# #?????????????????? | | ???????????????????????????## #?????????????????? | | ?????????????????????????### ##????????????????? | | ????????????????????????## #????????????????? | | ???????????????????????## #????????????????? | | ???????????????????????# ####????????????????? | | ???????????????????????# ####???????????????????? | | ???????????????????????# #??????????????????????? | | ???????????????????????## ##?????????????????????? | | ???????????????????????# #?????????????????????? | | ???????????????????????##@##?????????????????????? | | ???????????????????????#% #?????????????????????? | | ???????????????????????#= #?????????????????????? | | ???????????????????????## ##?????????????????????? | | ???????????????????????# Y#??????????????????????? | | ???????????????????????# #??????????????????????? | | ???????????????????????## ???????????????????? | | ????????????????????????# #?????????????????? | | ????????????????????????# #?????????????????? | | ???????????????????????? #?????????????????? | | ????????????????????????# #?????????????????? | | ????????????????????????#* ##?????????????????? | | ????????????????????????%= ##??????????????????? | | ????????????????????????#& #???????????????????? | | ?????????????????????????## #???????????????????? | | ??????????????????????